lending/lending_fUSD_20241214
["ID","MTS","AMOUNT","RATE_DAILY","PERIOD"]
[345352489,1734174644721,-500.0,0.00021249,3]
[345352490,1734174644730,-500.0,0.00021249,3]
[345352491,1734174644744,-500.0,0.00021249,3]
[345352492,1734174644754,-500.0,0.00021249,3]
[345352493,1734174644763,-500.0,0.00021249,3]
[345352494,1734174644772,-500.0,0.00021249,3]
[345352495,1734174644781,-500.0,0.00021249,3]
[345352496,1734174644790,-500.0,0.00021249,3]
[345352497,1734174644800,-500.0,0.00021249,3]
[345352498,1734174644810,-500.0,0.00021249,3]
[345352499,1734174644819,-500.0,0.00021249,3]
[345352500,1734174644829,-500.0,0.00021249,3]
[345352501,1734174644838,-500.0,0.00021249,3]
[345352502,1734174644847,-500.0,0.00021249,3]
[345352503,1734174644857,-500.0,0.00021249,3]
[345352504,1734174644866,-500.0,0.00021249,3]
[345352505,1734174644876,-500.0,0.00021249,3]
[345352506,1734174644886,-500.0,0.00021249,3]
[345352507,1734174644895,-500.0,0.00021249,3]
[345352508,1734174644905,-500.0,0.00021249,3]
[345352509,1734174644914,-500.0,0.00021249,3]
[345352510,1734174644924,-500.0,0.00021249,3]
[345352511,1734174644934,-500.0,0.00021249,3]
[345352512,1734174644943,-500.0,0.00021249,3]
[345352513,1734174644953,-500.0,0.00021249,3]
[345352514,1734174644962,-639.28210326,0.00021249,3]
[345352515,1734174644971,-573.9,0.00021249,3]
[345352516,1734174644981,-2269.44,0.00021249,3]
[345352517,1734174644991,-2269.44,0.00021249,3]
[345352518,1734174645000,-2269.44,0.00021249,3]
[345352519,1734174645010,-2269.44,0.00021249,3]
[345352520,1734174645020,-2269.44,0.00021249,3]
[345352521,1734174645029,-2269.44,0.00021249,3]
[345352522,1734174645039,-2269.44,0.00021249,3]
[345352523,1734174645049,-2269.44,0.00021249,3]
[345352524,1734174645059,-2269.44,0.00021249,3]
[345352525,1734174645069,-569.1,0.00021249,3]
[345352526,1734174645079,-2269.44,0.00021249,3]
[345352527,1734174645089,-500.0,0.00021249,3]
[345352528,1734174645099,-500.0,0.00021249,3]
[345352529,1734174645109,-2269.44,0.00021249,3]
[345352530,1734174645118,-2269.44,0.00021249,3]
[345352531,1734174645128,-500.0,0.00021249,3]
[345352532,1734174645137,-500.0,0.00021249,3]
[345352533,1734174645147,-2269.44,0.00021249,3]
[345352534,1734174645157,-525.4,0.00021249,3]
[345352535,1734174645167,-2269.44,0.00021249,3]
[345352536,1734174645176,-2269.44,0.00021249,3]
[345352537,1734174645186,-2269.44,0.00021249,3]
[345352538,1734174645195,-2269.44,0.00021249,3]
[345352539,1734174645204,-2269.44,0.00021249,3]
[345352540,1734174645214,-2269.44,0.00021249,3]
[345352541,1734174645223,-2269.44,0.00021249,3]
[345352542,1734174645233,-2269.44,0.00021249,3]
[345352543,1734174645243,-2269.44,0.00021249,3]
[345352544,1734174645252,-2269.52278419,0.00021249,3]
[345352545,1734174645262,-500.0,0.00021249,3]
[345352546,1734174645272,-500.0,0.00021249,3]
[345352547,1734174645281,-374.84,0.00021249,3]
[345352548,1734174645290,-500.0,0.00021249,3]
[345352549,1734174645299,-500.0,0.00021249,3]
[345352550,1734174645309,-500.0,0.00021249,3]
[345352551,1734174645318,-500.0,0.00021249,3]
[345352552,1734174645327,-500.0,0.00021249,3]
[345352553,1734174645337,-500.0,0.00021249,3]
[345352554,1734174645347,-500.0,0.00021249,3]
[345352555,1734174645356,-500.0,0.00021249,3]
[345352556,1734174645366,-500.0,0.00021249,3]
[345352557,1734174645375,-500.0,0.00021249,3]
[345352558,1734174645384,-500.0,0.00021249,3]
[345352559,1734174645394,-500.0,0.00021249,3]
[345352560,1734174645404,-500.0,0.00021249,3]
[345352561,1734174645413,-500.0,0.00021249,3]
[345352562,1734174645423,-500.0,0.00021249,3]
[345352563,1734174645433,-500.0,0.00021249,3]
[345352564,1734174645444,-500.0,0.00021249,3]
[345352565,1734174645453,-500.0,0.00021249,3]
[345352566,1734174645463,-500.0,0.00021249,3]
[345352567,1734174645472,-500.0,0.00021249,3]
[345352568,1734174645482,-500.0,0.00021249,3]
[345352569,1734174645491,-500.0,0.00021249,3]
[345352570,1734174645501,-500.0,0.00021249,3]
[345352571,1734174645511,-500.0,0.00021249,3]
[345352572,1734174645521,-509.29,0.00021249,3]
[345352573,1734174645531,-500.0,0.00021249,3]
[345352574,1734174645540,-500.0,0.00021249,3]
[345352575,1734174645551,-500.0,0.00021249,3]
[345352576,1734174645560,-500.0,0.00021249,3]
[345352577,1734174645570,-500.0,0.00021249,3]
[345352578,1734174645580,-500.0,0.00021249,3]
[345352579,1734174645590,-500.0,0.00021249,3]
[345352580,1734174645600,-157.26,0.00021249,3]
[345352581,1734174645611,-500.0,0.00021249,3]
[345352582,1734174645621,-505.7,0.00021249,3]
[345352583,1734174645630,-505.7,0.00021249,3]
[345352584,1734174645640,-505.7,0.00021249,3]
[345352585,1734174645650,-591.49902907,0.00021249,3]
[345352586,1734174645659,-505.7,0.00021249,3]
[345352587,1734174645669,-505.7,0.00021249,3]
[345352588,1734174645678,-505.7,0.00021249,3]
[345352589,1734174645688,-505.7,0.00021249,3]
[345352590,1734174645697,-505.7,0.00021249,3]
[345352591,1734174645707,-505.7,0.00021249,3]
[345352592,1734174645716,-500.0,0.00021249,3]
[345352593,1734174645726,-505.7,0.00021249,3]
[345352594,1734174645737,-505.7,0.00021249,3]
[345352595,1734174645750,-505.7,0.00021249,3]
[345352596,1734174645759,-500.0,0.00021249,3]
[345352597,1734174645768,-505.7,0.00021249,3]
[345352598,1734174645778,-505.7,0.00021249,3]
[345352599,1734174645788,-505.7,0.00021249,3]
[345352600,1734174645798,-505.7,0.00021249,3]
[345352601,1734174645807,-505.7,0.00021249,3]
[345352602,1734174645818,-505.7,0.00021249,3]
[345352603,1734174645828,-505.7,0.00021249,3]
[345352604,1734174645838,-505.7,0.00021249,3]
[345352605,1734174645847,-505.7,0.00021249,3]
[345352606,1734174645857,-505.7,0.00021249,3]
[345352607,1734174645868,-505.86,0.00021249,3]
[345352608,1734174645881,-500.0,0.00021249,3]
[345352609,1734174645890,-500.0,0.00021249,3]
[345352610,1734174645899,-500.0,0.00021249,3]
[345352611,1734174645909,-500.0,0.00021249,3]
[345352612,1734174645919,-500.0,0.00021249,3]
[345352613,1734174645928,-500.0,0.00021249,3]
[345352614,1734174645938,-500.0,0.00021249,3]
[345352615,1734174645947,-500.0,0.00021249,3]
[345352616,1734174645956,-500.0,0.00021249,3]
[345352617,1734174645966,-500.0,0.00021249,3]
[345352618,1734174645975,-500.0,0.00021249,3]
[345352619,1734174645984,-500.0,0.00021249,3]
[345352620,1734174645994,-555.3,0.00021249,3]
[345352621,1734174646004,-500.0,0.00021249,3]
[345352622,1734174646013,-500.0,0.00021249,3]
[345352623,1734174646023,-322.96244873,0.00021249,3]
[345352624,1734174646032,-500.0,0.00021249,3]
[345352625,1734174646041,-500.0,0.00021249,3]
[345352626,1734174646052,-500.0,0.00021249,3]
[345352627,1734174646062,-500.0,0.00021249,3]
[345352628,1734174646071,-500.0,0.00021249,3]
[345352629,1734174646080,-500.0,0.00021249,3]
[345352630,1734174646090,-500.0,0.00021249,3]
[345352631,1734174646099,-500.0,0.00021249,3]
[345352632,1734174646116,-500.0,0.00021249,3]
[345352633,1734174646126,-500.0,0.00021249,3]
[345352634,1734174646135,-500.0,0.00021249,3]
[345352635,1734174646144,-500.0,0.00021249,3]
[345352636,1734174646154,-500.0,0.00021249,3]
[345352637,1734174646163,-550.1,0.00021249,3]
[345352638,1734174646173,-500.0,0.00021249,3]
[345352639,1734174646182,-500.0,0.00021249,3]
[345352640,1734174646191,-500.0,0.00021249,3]
[345352641,1734174646201,-1000.0,0.00021249,3]
[345352642,1734174646305,-1000.0,0.00021249,3]
[345352643,1734174646327,-1000.0,0.00021249,3]
[345352644,1734174646337,-1000.0,0.00021249,3]
[345352645,1734174646346,-1000.0,0.00021249,3]
[345352646,1734174646361,-1000.0,0.00021249,3]
[345352647,1734174646370,-1000.0,0.00021249,3]
[345352648,1734174646380,-500.0,0.00021249,3]
[345352649,1734174646389,-500.0,0.00021249,3]
[345352650,1734174646398,-500.0,0.00021249,3]
[345352651,1734174646407,-500.0,0.00021249,3]
[345352652,1734174646416,-500.0,0.00021249,3]
[345352653,1734174646425,-500.0,0.00021249,3]
[345352655,1734174646434,-500.0,0.00021249,3]
[345352656,1734174646443,-500.0,0.00021249,3]
[345352657,1734174646452,-500.0,0.00021249,3]
[345352658,1734174646461,-500.0,0.00021249,3]
[345352659,1734174646470,-500.0,0.00021249,3]
[345352660,1734174646478,-500.0,0.00021249,3]
[345352661,1734174646487,-500.0,0.00021249,3]
[345352662,1734174646495,-500.0,0.00021249,3]
[345352663,1734174646503,-500.0,0.00021249,3]
[345352664,1734174646511,-500.0,0.00021249,3]
[345352665,1734174646519,-500.0,0.00021249,3]
[345352666,1734174646526,-500.0,0.00021249,3]
[345352667,1734174646534,-500.0,0.00021249,3]
[345352668,1734174646542,-500.0,0.00021249,3]
[345352669,1734174646550,-500.0,0.00021249,3]
[345352670,1734174646559,-500.0,0.00021249,3]
[345352671,1734174646567,-500.0,0.00021249,3]
[345352672,1734174646576,-500.0,0.00021249,3]
[345352673,1734174646585,-30000.0,0.0002125,2]
[345352674,1734174646594,-210225.47577345,0.0002125,4]
[345352675,1734174646602,-4633.6645752,0.0002125,2]
[345352676,1734174646614,-6283.1812228,0.0002125,2]
[345352677,1734174646624,-801.0,0.0002125,2]
[345352678,1734174646633,-1000.0,0.0002125,10]
[345352679,1734174646643,-1000.0,0.0002125,6]
[345352680,1734174646652,-1000.0,0.0002125,3]
[345352681,1734174646661,-213614.0,0.0002125,2]
[345352682,1734174646674,-12374356.23976199,0.0002125,2]
[345352683,1734174646850,-4809.91612363,0.0002125,2]
[345352684,1734174646872,-205.54,0.00021249,3]
[345352685,1734174646882,-10367.81307555,0.0002125,2]
[345352686,1734174646947,-596.03023191,0.0002125,2]
[345352687,1734174647273,-609.84881404,0.00019178,5]
[345352688,1734174647284,-390.15118596,0.00019178,5]
[345352689,1734174647295,-1000.0,0.00019452,6]
[345352690,1734174647304,-1000.0,0.00019726,7]
[345352691,1734174647314,-1000.0,0.0002,8]
[345352692,1734174647324,-2470.29489378,0.0002125,2]
[345352693,1734174647336,-12179.6853,0.0002125,2]
[345352694,1734174647348,-1169.58,0.0002125,2]
[345352695,1734174647369,-1005.71,0.0002077,2]
[345352696,1734174647378,-500.0,0.00021247,3]
[345352697,1734174647387,-72996.02613831,0.0002125,2]
[345352698,1734174647398,-52938.849,0.0002125,2]
[345352699,1734174708067,500.0,0.00017414,2]
[345352700,1734174716886,500.0,0.00017414,2]
[345352701,1734175071054,160.51,0.00013699,2]
[345352702,1734175112356,352.8,0.00010137,2]
[345352703,1734175493756,175.63,0.00015913,2]
[345352706,1734175625402,23114.02832521,0.000157,2]
[345352707,1734175628134,-352.8,0.00016813,2]
[345352708,1734175628157,-24.47980478,0.00018336,2]
[345352709,1734175637115,-396.76560811,0.00018336,2]
[345352710,1734175637222,-402.46458711,0.00018336,2]
[345352711,1734175637243,-302.59,0.00019234,2]
[345352712,1734175637263,-500.0,0.00019606,2]
[345352713,1734175637284,-200.0,0.00019892,2]
[345352714,1734175637305,-252.43,0.00019892,2]
[345352715,1734175637327,-252.43,0.00019897,2]
[345352716,1734175637348,-252.43,0.00019902,2]
[345352717,1734175637368,-252.43,0.00019907,2]
[345352718,1734175637390,-252.43,0.00019912,2]
[345352719,1734175637410,-252.43,0.00019918,2]
[345352720,1734175637432,-252.43,0.00019923,2]
[345352721,1734175637453,-252.43,0.00019928,2]
[345352722,1734175637474,-252.43,0.00019933,2]
[345352723,1734175637496,-252.43,0.00019939,2]
[345352724,1734175637517,-252.43,0.00019944,2]
[345352725,1734175637537,-302.59,0.00019945,2]
[345352726,1734175637558,-252.43,0.00019949,2]
[345352727,1734175637578,-252.43,0.00019954,2]
[345352728,1734175637599,-252.43,0.0001996,2]
[345352729,1734175637620,-252.43,0.00019965,2]
[345352730,1734175637642,-252.43,0.0001997,2]
[345352731,1734175637662,-252.43,0.00019975,2]
[345352732,1734175637684,-252.43,0.0001998,2]
[345352733,1734175637707,-252.43,0.00019986,2]
[345352734,1734175637729,-252.43,0.00019991,2]
[345352735,1734175637750,-300.0,0.00019991,2]
[345352736,1734175637770,-450.0,0.00019991,2]
[345352737,1734175637789,-291.56,0.0002,2]
[345352738,1734175637810,-525.61388288,0.0002,3]
[345352739,1734175637831,-2751.0,0.00020046,2]
[345352740,1734175637851,-500.0,0.00020164,2]
[345352741,1734175637870,-500.0,0.00020164,2]
[345352742,1734175637891,-487.0,0.00020164,2]
[345352743,1734175637911,-200.0,0.00020176,2]
[345352744,1734175637935,-254.716,0.0002019,2]
[345352745,1734175637955,-198.96,0.00020206,2]
[345352746,1734175637974,-2276.33,0.00020239,2]
[345352747,1734175637994,-250.0,0.00020254,2]
[345352748,1734175638013,-500.0,0.00020263,2]
[345352749,1734175638035,-1000.0,0.0002027,2]
[345352750,1734175638060,-421.54,0.00020352,2]
[345352751,1734175638081,-975.55,0.00020478,2]
[345352752,1734175638103,-119.67278931,0.00020478,2]
[345352755,1734175775603,450.0,0.00013,2]
[345352756,1734175776682,500.0,0.00015,2]
[345352763,1734175832100,-338.62351092,0.00019316,2]
[345352767,1734175832211,-876.33,0.00019316,2]
[345352768,1734175832331,-539.51618683,0.00019316,2]
[345352769,1734175832342,-250.0,0.0002018,2]
[345352770,1734175832354,-271.60838523,0.00020224,2]
[345352771,1734175832444,-728.39161477,0.00020224,2]
[345352772,1734175832455,-72.51089774,0.00020237,2]
[345352773,1734175832472,-343.57910226,0.00020237,2]
[345352774,1734175832482,-855.87721069,0.00020478,2]
[345352775,1734175832493,-975.55,0.00020478,2]
[345352776,1734175832503,-506.13140023,0.000206,2]
[345352777,1734175832516,-317.57859977,0.000206,2]
[345352778,1734175832527,-302.59,0.00020657,2]
[345352779,1734175832539,-1514.5781835,0.0002088,2]
[345352780,1734175832553,-4775.95831504,0.0002088,2]
[345352781,1734175832566,-3364.23786805,0.0002088,2]
[345352784,1734175838101,-31837.72731065,0.0002088,2]
[345352785,1734175838112,-200.0,0.00020902,2]
[345352786,1734175838123,-200.0,0.0002091,2]
[345352787,1734175838134,-200.0,0.00020929,2]
[345352788,1734175838146,-200.0,0.00020932,2]
[345352789,1734175838157,-200.0,0.00020935,2]
[345352790,1734175838168,-3957.22,0.00020951,2]
[345352791,1734175838179,-299.99,0.00020951,7]
[345352792,1734175838190,-9982.11,0.00020951,2]
[345352793,1734175838201,-9999.99,0.00020951,2]
[345352794,1734175838212,-1901.19,0.00020951,2]
[345352795,1734175838223,-150.99,0.00020951,2]
[345352796,1734175838233,-430.94,0.00020951,2]
[345352797,1734175838243,-221.58,0.00020951,2]
[345352798,1734175838255,-224965.0,0.00021,2]
[345352799,1734175838265,-975.55,0.00021,2]
[345352800,1734175838275,-299.999999,0.00021,2]
[345352801,1734175838285,-973.59,0.00021,2]
[345352802,1734175838296,-1251.40696,0.0002104,2]
[345352803,1734175838306,-173.05462828,0.00021075,2]
[345352804,1734175838316,-501.38,0.00021075,2]
[345352805,1734175838327,-500.0,0.0002108,2]
[345352806,1734175838337,-500.0,0.00021095,3]
[345352807,1734175838348,-591.49902907,0.00021095,3]
[345352808,1734175838358,-500.0,0.00021095,3]
[345352809,1734175838368,-500.0,0.00021095,3]
[345352810,1734175838379,-400.877,0.000211,2]
[345352811,1734175838390,-500.0,0.00021148,3]
[345352812,1734175838400,-500.0,0.00021148,3]
[345352813,1734175838411,-500.0,0.00021148,3]
[345352814,1734175838422,-500.0,0.00021148,3]
[345352815,1734175838432,-500.0,0.00021148,3]
[345352816,1734175838443,-500.0,0.00021148,3]
[345352817,1734175838453,-1000.0,0.00021148,3]
[345352818,1734175838464,-500.0,0.00021148,3]
[345352819,1734175838474,-500.0,0.00021148,3]
[345352820,1734175838485,-216.45,0.00021149,2]
[345352821,1734175838496,-213.86,0.000212,2]
[345352822,1734175838506,-1604.92718873,0.000212,2]
[345352823,1734175838516,-327374.80276404,0.000212,2]
[345352824,1734175838527,-530.21,0.00021245,3]
[345352825,1734175838537,-500.0,0.00021245,3]
[345352826,1734175838549,-500.0,0.00021245,3]
[345352827,1734175838559,-500.0,0.00021245,3]
[345352828,1734175838571,-500.0,0.00021245,3]
[345352830,1734175838581,-500.0,0.00021245,3]
[345352832,1734175838594,-500.0,0.00021245,3]
[345352834,1734175838605,-500.0,0.00021245,3]
[345352836,1734175838616,-500.0,0.00021245,3]
[345352839,1734175838627,-500.0,0.00021245,3]
[345352840,1734175838638,-583.38,0.00021245,3]
[345352841,1734175838649,-500.0,0.00021245,3]
[345352842,1734175838659,-500.0,0.00021245,3]
[345352843,1734175838670,-500.0,0.00021245,3]
[345352844,1734175838681,-500.0,0.00021245,3]
[345352845,1734175838691,-500.0,0.00021245,3]
[345352846,1734175838702,-500.0,0.00021245,3]
[345352847,1734175838713,-500.0,0.00021245,3]
[345352848,1734175838723,-500.0,0.00021245,3]
[345352849,1734175838734,-500.0,0.00021245,3]
[345352850,1734175838745,-500.0,0.00021245,3]
[345352851,1734175838755,-500.0,0.00021245,3]
[345352852,1734175838942,-578.35,0.00021245,3]
[345352853,1734175838960,-500.0,0.00021245,3]
[345352854,1734175838970,-500.0,0.00021245,3]
[345352855,1734175838979,-381.2,0.00021245,3]
[345352856,1734175838988,-510.68,0.00021245,3]
[345352857,1734175838998,-500.0,0.00021245,3]
[345352858,1734175839007,-185.66,0.00021245,3]
[345352859,1734175839016,-500.0,0.00021245,3]
[345352860,1734175839025,-278.16225805,0.00021245,3]
[345352861,1734175839033,-500.0,0.00021245,3]
[345352862,1734175839042,-500.0,0.00021245,3]
[345352863,1734175839052,-500.0,0.00021245,3]
[345352864,1734175839061,-500.0,0.00021245,3]
[345352865,1734175839070,-604.81,0.00021245,3]
[345352866,1734175839080,-500.0,0.00021245,3]
[345352867,1734175839090,-500.0,0.00021245,3]
[345352868,1734175839103,-648.08,0.00021245,3]
[345352869,1734175839112,-500.0,0.00021245,3]
[345352870,1734175839121,-500.0,0.00021245,3]
[345352871,1734175839131,-500.0,0.00021245,3]
[345352872,1734175839140,-500.0,0.00021245,3]
[345352873,1734175839149,-500.0,0.00021245,3]
[345352874,1734175839159,-500.0,0.00021245,3]
[345352875,1734175839171,-500.0,0.00021245,3]
[345352876,1734175839180,-500.0,0.00021245,3]
[345352877,1734175839190,-500.0,0.00021245,3]
[345352878,1734175839200,-500.0,0.00021246,3]
[345352879,1734175839210,-500.0,0.00021246,3]
[345352880,1734175839218,-500.0,0.00021246,3]
[345352881,1734175839230,-500.0,0.00021246,3]
[345352882,1734175839240,-500.0,0.00021246,3]
[345352883,1734175839250,-500.7,0.00021246,3]
[345352884,1734175839259,-500.0,0.00021246,3]
[345352885,1734175839268,-500.0,0.00021246,3]
[345352886,1734175839276,-1000.27,0.00021247,2]
[345352887,1734175839285,-500.0,0.00021248,3]
[345352888,1734175839295,-500.0,0.00021248,3]
[345352889,1734175839306,-500.0,0.00021248,3]
[345352890,1734175839316,-500.0,0.00021248,3]
[345352891,1734175839325,-500.0,0.00021248,3]
[345352892,1734175839334,-595.02879435,0.00021248,2]
[345352893,1734175839347,-500.0,0.00021248,3]
[345352894,1734175839356,-150.0,0.00021249,2]
[345352895,1734175839366,-2506.02310627,0.00021249,14]
[345352896,1734175839375,-500.0,0.00021249,3]
[345352897,1734175839384,-500.0,0.00021249,3]
[345352898,1734175839394,-200.0,0.00021249,3]
[345352899,1734175839403,-500.0,0.00021249,3]
[345352900,1734175839412,-500.0,0.00021249,3]
[345352901,1734175839421,-500.0,0.00021249,3]
[345352902,1734175839431,-500.0,0.00021249,3]
[345352903,1734175839441,-500.0,0.00021249,3]
[345352904,1734175839450,-500.0,0.00021249,3]
[345352905,1734175839459,-604.4,0.00021249,3]
[345352906,1734175839469,-500.0,0.00021249,3]
[345352907,1734175839479,-500.0,0.00021249,3]
[345352908,1734175839488,-500.0,0.00021249,3]
[345352909,1734175839497,-423.07762065,0.00021249,3]
[345352910,1734175839507,-500.0,0.00021249,3]
[345352911,1734175839515,-251.36935869,0.00021249,3]
[345352912,1734175839525,-500.0,0.00021249,3]
[345352913,1734175839536,-500.0,0.00021249,3]
[345352914,1734175839547,-500.0,0.00021249,3]
[345352915,1734175839556,-500.0,0.00021249,3]
[345352916,1734175839566,-500.0,0.00021249,3]
[345352917,1734175839574,-500.0,0.00021249,3]
[345352918,1734175839584,-500.0,0.00021249,3]
[345352919,1734175839596,-500.0,0.00021249,3]
[345352920,1734175839605,-581.24,0.00021249,3]
[345352921,1734175839615,-460.3742397,0.00021249,3]
[345352922,1734175839624,-500.0,0.00021249,3]
[345352923,1734175839633,-500.0,0.00021249,3]
[345352924,1734175839642,-433.35,0.00021249,3]
[345352925,1734175839652,-500.0,0.00021249,3]
[345352926,1734175839663,-688.2,0.00021249,2]
[345352927,1734175839673,-500.0,0.00021249,3]
[345352928,1734175839684,-184.21,0.00021249,3]
[345352929,1734175839695,-500.0,0.00021249,3]
[345352930,1734175839705,-500.0,0.00021249,3]
[345352931,1734175839714,-500.0,0.00021249,3]
[345352932,1734175839723,-519.97,0.00021249,3]
[345352933,1734175839732,-500.0,0.00021249,3]
[345352934,1734175839743,-500.0,0.00021249,3]
[345352935,1734175839752,-500.0,0.00021249,3]
[345352936,1734175839761,-500.0,0.00021249,3]
[345352937,1734175839771,-500.0,0.00021249,3]
[345352938,1734175839780,-500.0,0.00021249,3]
[345352939,1734175839790,-500.0,0.00021249,3]
[345352940,1734175839801,-500.0,0.00021249,3]
[345352941,1734175839810,-500.0,0.00021249,3]
[345352942,1734175839820,-500.0,0.00021249,3]
[345352943,1734175839830,-500.0,0.00021249,3]
[345352944,1734175839841,-500.0,0.00021249,3]
[345352945,1734175839850,-546.8337752,0.00021249,3]
[345352946,1734175839859,-500.0,0.00021249,3]
[345352947,1734175839867,-500.0,0.00021249,3]
[345352948,1734175839876,-500.0,0.00021249,3]
[345352949,1734175839885,-500.0,0.00021249,3]
[345352950,1734175839894,-500.0,0.00021249,3]
[345352951,1734175839903,-500.0,0.00021249,3]
[345352952,1734175839912,-500.0,0.00021249,3]
[345352953,1734175839921,-500.0,0.00021249,3]
[345352954,1734175839930,-500.0,0.00021249,3]
[345352956,1734175839939,-500.0,0.00021249,3]
[345352957,1734175839947,-500.0,0.00021249,3]
[345352958,1734175839956,-500.0,0.00021249,3]
[345352959,1734175839965,-500.0,0.00021249,3]
[345352961,1734175839974,-500.0,0.00021249,3]
[345352963,1734175839983,-500.0,0.00021249,3]
[345352965,1734175839992,-597.44,0.00021249,3]
[345352966,1734175840005,-500.0,0.00021249,3]
[345352967,1734175840015,-289.46853659,0.00021249,3]
[345352968,1734175840024,-573.31,0.00021249,3]
[345352969,1734175840033,-500.0,0.00021249,3]
[345352970,1734175840042,-500.0,0.00021249,3]
[345352971,1734175840051,-500.0,0.00021249,3]
[345352972,1734175840061,-500.0,0.00021249,3]
[345352973,1734175840070,-602.35178792,0.00021249,3]
[345352974,1734175840079,-500.0,0.00021249,3]
[345352975,1734175840089,-500.0,0.00021249,3]
[345352976,1734175840098,-500.0,0.00021249,3]
[345352977,1734175840107,-500.0,0.00021249,3]
[345352978,1734175840116,-500.0,0.00021249,3]
[345352979,1734175840125,-500.0,0.00021249,3]
[345352980,1734175840135,-500.0,0.00021249,3]
[345352981,1734175840145,-500.0,0.00021249,3]
[345352982,1734175840153,-500.0,0.00021249,3]
[345352983,1734175840161,-306.10704621,0.00021249,3]
[345352984,1734175840170,-500.0,0.00021249,3]
[345352985,1734175840179,-500.0,0.00021249,3]
[345352986,1734175840189,-500.0,0.00021249,3]
[345352987,1734175840198,-500.0,0.00021249,3]
[345352988,1734175840207,-500.0,0.00021249,3]
[345352989,1734175840216,-500.0,0.00021249,3]
[345352990,1734175840226,-500.0,0.00021249,3]
[345352991,1734175840236,-610.55503261,0.00021249,3]
[345352992,1734175840245,-500.0,0.00021249,3]
[345352993,1734175840255,-500.0,0.00021249,3]
[345352994,1734175840264,-178.68,0.00021249,3]
[345352995,1734175840273,-500.0,0.00021249,3]
[345352996,1734175840282,-500.0,0.00021249,3]
[345352997,1734175840291,-500.0,0.00021249,3]
[345352998,1734175840300,-500.0,0.00021249,3]
[345352999,1734175840309,-500.0,0.00021249,3]
[345353000,1734175840318,-234.25,0.00021249,3]
[345353001,1734175840328,-612.39059571,0.00021249,3]
[345353002,1734175840337,-500.0,0.00021249,3]
[345353003,1734175840348,-500.0,0.00021249,3]
[345353004,1734175840357,-500.0,0.00021249,3]
[345353005,1734175840366,-500.0,0.00021249,3]
[345353006,1734175840375,-500.0,0.00021249,3]
[345353007,1734175840385,-500.0,0.00021249,3]
[345353008,1734175840394,-500.0,0.00021249,3]
[345353009,1734175840403,-500.0,0.00021249,3]
[345353010,1734175840412,-500.0,0.00021249,3]
[345353011,1734175840422,-500.0,0.00021249,3]
[345353012,1734175840431,-500.0,0.00021249,3]
[345353013,1734175840440,-606.72,0.00021249,3]
[345353014,1734175840449,-500.0,0.00021249,3]